bitfinex/quotes_ETHUSD_20250413
["timestamp","ask_amount","ask_price","bid_price","bid_amount"]
[1744564892439,0.96606329,1623.6,1622.7,6.16241]
[1744564892621,6.16018,1623.4,1622.8,6.16197]
[1744564892822,0.04558935,1623.3,1622.7,6.16254]
[1744564893029,0.04558935,1623.4,1623.1,6.16082]
[1744564893240,0.04558935,1623.6,1623.2,6.22199963]
[1744564893555,0.04558935,1623.6,1623.1,6.16096]
[1744564893722,6.20500935,1623.6,1623.0,6.1612]
[1744564893919,6.1598,1623.5,1622.9,6.1618]
[1744564894256,6.1598,1623.5,1622.3,7.81998]
[1744564894257,0.04558935,1623.5,1622.5,6.16332]
[1744564894414,52.816,1623.7,1623.3,6.16011]
[1744564894620,52.816,1623.7,1623.4,6.15959]
[1744564894832,52.816,1623.7,1623.5,6.15945]
[1744564895119,52.816,1623.7,1623.4,12.3193]
[1744564895545,12.31423,1624.2,1623.6,6.15894]
[1744564895717,6.20299935,1624.1,1623.6,6.15894]
[1744564895917,0.04558935,1624.2,1623.7,6.1586]
[1744564896117,0.66580129,1624.2,1623.0,0.55]
[1744564896318,0.04558935,1624.2,1623.2,6.16046]
[1744564896538,6.15823,1623.9,1623.3,6.16004]
[1744564896740,6.15823,1623.9,1623.0,12.32266]
[1744564896741,0.04558935,1623.8,1623.0,12.32266]
[1744564896954,6.15936,1623.6,1623.1,6.22264311]
[1744564897151,6.15973,1623.5,1622.5,6.16324]
[1744564897331,6.16086,1623.2,1622.6,6.16263]
[1744564897864,0.04558935,1623.1,1622.3,1.6561]
[1744564898069,12.36570935,1623.4,1622.8,6.16187]
[1744564898236,6.16067,1623.2,1622.3,1.6561]
[1744564898425,6.16142,1623.0,1622.1,1e-05]
[1744564898625,6.16388,1622.4,1622.1,1e-05]
[1744564898955,0.04558935,1622.4,1622.1,1e-05]
[1744564899439,1.5717,1622.4,1622.1,1e-05]
[1744564899640,0.04558935,1622.3,1622.1,1e-05]
[1744564900152,52.83,1622.5,1622.1,6.16462]
[1744564900370,0.04558935,1622.4,1622.1,1e-05]
[1744564900864,6.20950935,1622.4,1622.1,1e-05]
[1744564901065,6.16446,1622.2,1622.1,1e-05]
[1744564901480,0.04558935,1622.2,1622.1,1e-05]
[1744564901667,0.04558935,1622.4,1622.1,1e-05]
[1744564901967,6.16446,1622.2,1622.1,1e-05]
[1744564902144,6.20929935,1622.4,1622.1,1e-05]
[1744564902344,0.04558935,1622.4,1622.1,1e-05]
[1744564903056,6.16442,1622.3,1622.1,1e-05]
[1744564903260,0.04558935,1622.2,1622.1,1e-05]
[1744564903985,0.04558935,1622.4,1622.1,1e-05]
[1744564904169,6.16424,1622.3,1622.1,1e-05]
[1744564904374,0.04558935,1622.2,1622.1,1e-05]
[1744564904570,6.21004935,1622.2,1622.1,1e-05]
[1744564904769,0.04558935,1622.2,1622.1,1e-05]
[1744564904973,6.20936935,1622.4,1622.1,1e-05]
[1744564905292,52.83,1622.5,1622.1,6.16466]
[1744564905581,52.83,1622.5,1622.2,6.16445]
[1744564905784,13.89487,1623.0,1622.4,6.16342]
[1744564906081,6.16747,1621.5,1621.1,1.3749265]
[1744564906284,52.90258935,1621.4,1621.1,1.3749265]
[1744564906460,52.857,1621.4,1621.1,1.3749265]
[1744564906856,6.16601,1621.8,1621.2,6.16812]
[1744564907087,6.21205935,1621.7,1621.1,7.5433165]
[1744564907281,0.04558935,1621.7,1621.2,0.06167609]
[1744564907580,6.16689,1621.6,1621.1,1.3749265]
[1744564907804,0.04558935,1621.5,1621.1,1.3749265]
[1744564907961,0.04558935,1621.5,1621.2,6.16798]
[1744564908289,0.04558935,1621.5,1621.1,1.3749265]
[1744564908290,0.04558935,1621.7,1621.1,1.3749265]
[1744564908456,6.16751,1621.4,1621.1,1.3749265]
[1744564908656,6.16827,1621.2,1621.1,1.33764752]
[1744564908991,6.21382935,1621.3,1621.1,1.33764752]
[1744564909189,6.16827,1621.2,1621.1,1.33764752]
[1744564909390,12.38202935,1621.3,1621.1,1.33764752]
[1744564909591,6.21378935,1621.3,1621.1,1.33764752]
[1744564909759,6.16827,1621.2,1621.1,1.33764752]
[1744564910175,6.21385935,1621.2,1621.1,1.33764752]
[1744564910376,6.17017,1620.7,1620.6,0.55]
[1744564910583,6.21575935,1620.7,1620.6,0.55]
[1744564911180,6.17207,1620.2,1620.1,0.02]
[1744564911472,6.17183,1620.3,1620.1,0.02]
[1744564911766,0.04558935,1620.2,1620.1,0.02]
[1744564912292,0.04558935,1620.7,1620.2,6.1719]
[1744564912608,0.04558935,1620.7,1620.1,0.02]
[1744564912609,6.17114,1620.5,1620.1,0.02]
[1744564912814,0.04558935,1620.4,1620.1,0.02]
[1744564912979,6.16957,1620.9,1620.3,6.17136]
[1744564913180,0.04558935,1620.8,1620.5,6.17065]
[1744564913497,0.04558935,1620.9,1620.6,6.17052]
[1744564913900,0.04558935,1620.9,1620.1,6.1921]
[1744564914100,0.04558935,1620.9,1620.6,6.17038]
[1744564914417,60.58539,1621.2,1620.1,0.02]
[1744564914418,6.21481935,1621.0,1620.1,0.02]
[1744564914580,0.04558935,1621.0,1620.5,6.17062]
[1744564914780,0.04558935,1621.0,1620.6,6.17043]
[1744564914975,0.04558935,1621.0,1620.4,6.17113]
[1744564915165,6.21479935,1621.0,1620.5,6.17078]
[1744564915373,6.16955,1620.9,1620.4,12.34219]
[1744564915705,0.04558935,1620.8,1620.5,6.1709]
[1744564916091,0.04558935,1620.9,1620.6,6.17028]
[1744564916277,0.04558935,1621.1,1620.7,6.16997]
[1744564916479,6.16731,1621.5,1620.4,6.17129]
[1744564916480,1.5151,1621.7,1620.8,0.06170084]
[1744564916680,0.04558935,1622.0,1620.9,0.06168324]
[1744564917023,6.16663,1621.7,1621.1,6.16844]
[1744564917321,0.04558935,1621.6,1620.8,0.55]
[1744564917474,6.16563,1621.9,1621.4,6.16747]
[1744564917798,0.04558935,1621.8,1621.2,6.16826]
[1744564917999,0.04558935,1621.8,1621.1,6.16836]
[1744564918202,0.04558935,1621.8,1620.8,0.06168109]
[1744564918420,0.04558935,1621.8,1621.3,6.16771]
[1744564918587,0.04558935,1621.9,1621.5,6.16692]
[1744564918773,3.0,1621.8,1620.7,1.5488]
[1744564918971,0.04558935,1621.7,1621.0,6.16865]
[1744564919299,0.04558935,1621.7,1620.7,7.71873]
[1744564919300,0.04558935,1621.7,1621.2,6.16825]
[1744564919499,6.16744,1621.5,1620.9,6.16924]
[1744564919700,0.04558935,1621.4,1621.0,6.16868]
[1744564919902,0.04558935,1621.8,1621.5,6.16691]
[1744564920204,0.04558935,1622.0,1621.5,6.16688]
[1744564920415,0.04558935,1622.1,1621.9,6.16546]
[1744564920712,6.16463,1622.2,1621.7,6.16604]
[1744564920918,0.04558935,1622.1,1620.9,6.16918]
[1744564921115,6.16774,1621.4,1620.9,6.16918]
[1744564921316,7.6807,1621.9,1620.7,6.16981]
[1744564921317,6.21349935,1621.3,1620.7,6.16981]
[1744564921631,6.21375935,1621.3,1620.5,6.23257181]
[1744564921827,6.16955,1620.9,1620.4,6.17116]
[1744564922029,6.21540935,1620.8,1620.2,7.72064]
[1744564922231,6.21544935,1620.8,1620.3,6.23319847]
[1744564922399,6.21544935,1620.8,1620.1,0.02]
[1744564922400,1.28408029,1620.8,1620.1,0.02]
[1744564922739,0.04558935,1620.8,1620.2,6.17207]
[1744564922935,6.16907,1621.0,1620.7,6.17002]
[1744564922936,0.04558935,1621.0,1620.7,6.17002]
[1744564923086,0.04558935,1621.1,1620.8,6.16962]
[1744564923283,0.04558935,1621.2,1620.6,6.1705]
[1744564923530,0.04558935,1621.3,1620.6,6.1705]
[1744564923735,6.16806,1621.3,1620.8,6.16959]
[1744564923895,6.21388935,1621.2,1620.7,6.16984]
[1744564924088,0.04558935,1621.2,1620.9,6.16922]
[1744564924284,0.04558935,1621.5,1620.7,6.17017]
[1744564924501,0.04558935,1621.5,1621.2,6.16805]
[1744564924701,6.16919,1621.0,1620.5,6.17077]
[1744564924926,3.92967008,1622.3,1620.6,0.06170209]
[1744564925127,3.92967008,1622.3,1621.6,6.1665]
[1744564925128,0.04558935,1622.0,1621.6,6.1665]
[1744564925335,6.16662,1621.7,1621.1,6.16833]
[1744564925541,6.16858,1621.2,1620.6,6.17023]
[1744564925745,6.16917,1621.0,1620.5,6.17089]
[1744564926041,6.17071,1620.6,1620.1,6.19242]
[1744564926342,0.04558935,1620.5,1620.1,0.02]
[1744564926643,6.16964,1620.9,1620.4,6.17098]
[1744564926855,0.04558935,1620.8,1620.4,6.17098]
[1744564927055,0.04558935,1620.8,1620.4,0.2621916]
[1744564927351,1.5497,1621.2,1620.4,0.2621916]
[1744564927352,0.04558935,1621.1,1620.7,6.16998]
[1744564927649,0.04558935,1621.1,1620.9,6.16941]
[1744564927848,6.21243935,1621.6,1621.1,6.16857]
[1744564928058,6.16827,1621.2,1621.1,0.2621916]
[1744564928203,0.04558935,1621.5,1621.1,0.2621916]
[1744564928403,7.72459,1622.1,1621.4,6.1675]
[1744564928647,52.915,1622.4,1621.9,6.16542]
[1744564928848,10.09428008,1622.2,1621.7,6.166]
[1744564929061,3.92967008,1622.2,1622.1,6.16484]
[1744564930121,5.1085711,1622.7,1622.6,6.16294]
[1744564930450,1.1e-06,1622.7,1622.6,6.16294]
[1744564930606,1.1e-06,1622.7,1622.6,6.35538552]
[1744564930807,0.005,1622.8,1622.7,6.16256]
[1744564931314,0.02,1623.4,1623.3,6.16029]
[1744564931701,0.02,1623.4,1623.1,6.16069]
[1744564931944,0.02,1623.4,1623.3,6.16029]
[1744564932108,6.18013,1623.4,1622.6,1.6561]
[1744564932311,0.02,1623.4,1623.1,6.16083]
[1744564932724,0.02,1623.4,1623.2,6.16048]
[1744564933199,0.02,1623.4,1623.3,6.16029]
[1744564933399,0.02,1623.4,1623.2,6.16054]
[1744564933716,0.02,1623.4,1623.0,6.16108]
[1744564933909,0.02,1623.4,1623.3,6.16029]
[1744564934108,0.02,1623.4,1623.1,6.16104]
[1744564934303,0.02,1623.4,1623.0,6.1611]
[1744564934527,0.02,1623.4,1623.1,6.16085]
[1744564935121,0.02,1623.4,1622.9,6.16173]
[1744564935350,0.02,1623.4,1623.0,0.06160763]
[1744564935537,0.02,1623.4,1623.2,6.16041]
[1744564935735,0.02,1623.4,1623.1,6.16103]
[1744564935937,0.02,1623.4,1623.0,6.16126]
[1744564936143,0.02,1623.4,1621.9,1.6436]
[1744564936144,6.17996,1623.4,1622.9,6.16166]
[1744564936439,6.16033,1623.3,1622.8,6.1621]
[1744564936649,12.32198,1623.2,1622.7,6.16238]
[1744564936858,6.16099,1623.2,1622.6,6.16279]
[1744564937034,6.16121,1623.1,1622.5,6.16297]
[1744564937208,6.16038,1623.3,1622.2,6.16414]
[1744564937414,6.16238,1622.8,1622.3,6.16391]
[1744564937913,6.16238,1622.8,1622.3,6.16386]
[1744564938141,6.16233,1622.8,1622.3,6.16406]
[1744564938343,1.5728,1623.3,1622.6,6.16281]
[1744564938544,6.16036,1623.3,1622.8,6.16214]
[1744564938715,6.16137,1623.1,1622.6,6.16294]
[1744564938915,0.616137,1623.1,1622.4,6.1637]
[1744564939129,0.616137,1623.1,1622.1,6.16461]
[1744564939130,6.16337,1622.5,1622.1,6.16461]
[1744564939334,6.16337,1622.5,1622.0,6.16522]
[1744564939631,6.16453,1622.2,1621.7,6.16634]
[1744564939983,6.16653,1621.7,1621.2,12.33598]
[1744564940132,6.16653,1621.7,1621.1,0.2621916]
[1744564940133,59.03254,1622.2,1621.3,6.16782]
[1744564940332,52.868,1622.2,1621.6,6.16658]
[1744564940528,6.16516,1622.1,1621.5,6.16712]
[1744564940877,52.868,1622.2,1621.4,0.0616632]
[1744564941085,4.5526,1622.7,1621.7,6.16617]
[1744564941375,6.16381,1622.4,1621.8,6.16593]
[1744564941526,6.16332,1622.5,1621.3,3.0]
[1744564941731,3.0,1622.4,1621.3,6.16768]
[1744564941963,6.16486,1622.1,1621.6,6.16641]
[1744564942159,9.16374,1622.4,1621.5,6.1671]
[1744564942160,6.16446,1622.2,1621.5,6.1671]
[1744564942360,6.16332,1622.5,1621.7,6.16628]
[1744564942578,6.16372,1622.4,1621.4,6.16735]
[1744564942902,1.5526,1622.7,1621.5,6.16712]
[1744564943037,6.16346,1622.5,1622.1,6.16457]
[1744564943229,6.16336,1622.5,1622.0,6.16508]
[1744564943464,6.16336,1622.5,1622.1,6.16471]
[1744564943668,1.5526,1622.7,1622.3,6.16405]
[1744564943953,1.5526,1622.7,1621.9,6.1654]
[1744564944240,6.16336,1622.5,1621.8,0.06164877]
[1744564944434,6.16327,1622.6,1622.1,6.16468]
[1744564944638,6.16384,1622.4,1621.8,6.16595]
[1744564944935,6.16257,1622.7,1622.2,6.16424]
[1744564945135,63.582,1623.1,1622.1,6.16448]
[1744564945373,6.16317,1622.6,1622.1,6.16455]
[1744564945570,6.16245,1622.8,1622.2,6.16411]
[1744564945730,6.1449596,1623.0,1621.0,7.99304]
[1744564945731,3.0,1622.9,1621.0,1.6241]
[1744564945935,6.1449596,1623.0,1622.2,6.16435]
[1744564946170,6.16257,1622.7,1622.2,6.16435]
[1744564946375,6.16257,1622.7,1622.2,12.32857]
[1744564946678,6.1622,1622.8,1622.3,6.1638]
[1744564946974,6.16286,1622.7,1622.2,6.16444]
[1744564947277,12.32568,1622.7,1622.2,6.16444]
[1744564947574,6.1618,1622.9,1621.9,6.16531]
[1744564947779,6.16414,1622.3,1621.9,6.16531]
[1744564948083,9.16218,1622.8,1621.7,6.16623]
[1744564948230,9.16218,1622.8,1621.5,6.16694]
[1744564948231,6.16546,1622.0,1621.5,6.16694]
[1744564948436,6.1645,1622.2,1621.1,0.2621916]
[1744564948678,6.16484,1622.1,1621.1,0.2621916]
[1744564948972,60.59013,1622.2,1621.7,6.1662]
[1744564949224,52.873,1622.2,1622.0,6.16494]
[1744564949358,6.16388,1622.4,1621.9,6.16557]
[1744564949660,6.1632,1622.6,1622.0,6.16502]
[1744564949866,1.66146334,1622.7,1621.7,6.16636]
[1744564950175,6.1648,1622.2,1621.6,7.79059]
[1744564950357,6.16472,1622.2,1621.7,6.16628]
[1744564950557,6.16517,1622.1,1621.6,12.33308]
[1744564950797,6.1642,1622.3,1621.8,6.16578]
[1744564951004,6.1642,1622.3,1621.3,6.16783]
[1744564951005,6.16655,1621.7,1621.3,6.16783]
[1744564951183,6.16578,1621.9,1621.3,6.16784]
[1744564951381,52.875,1622.1,1621.2,6.16821]
[1744564951382,6.1663,1621.8,1621.2,6.16821]
[1744564951701,6.1663,1621.8,1621.3,6.16787]
[1744564951907,6.16625,1621.8,1621.2,6.16826]
[1744564952108,6.16625,1621.8,1621.2,6.16804]
[1744564952256,55.875,1622.1,1621.6,6.16649]
[1744564952461,55.875,1622.1,1621.5,6.16691]
[1744564952691,55.875,1622.1,1621.2,6.16827]
[1744564952872,6.16535,1622.0,1621.5,6.16697]
[1744564953205,65.20525,1622.1,1621.6,6.16672]
[1744564953385,6.16538,1622.0,1621.5,6.16697]
[1744564953704,2.10329064,1622.0,1621.1,0.2621916]
[1744564953904,6.16634,1621.8,1621.1,0.2621916]
[1744564954201,6.16661,1621.7,1621.2,6.16811]
[1744564954609,6.16827,1621.2,1621.1,0.2621916]
[1744564954761,59.05027,1621.2,1621.1,0.2621916]
[1744564955866,65.1952296,1621.2,1621.1,0.2621916]
[1744564957014,6.1705,1620.7,1620.2,6.17204]
[1744564957200,6.17095,1620.5,1620.1,6.19225]
[1744564957404,6.17095,1620.5,1620.1,0.02]
[1744564957954,6.17207,1620.2,1620.1,0.02]
[1744564958226,60.62067,1620.2,1620.1,0.02]
[1744564958779,6.17453,1619.6,1619.1,12.37214]
[1744564958983,6.17453,1619.6,1619.1,6.19603]
[1744564959178,6.1736,1619.8,1619.1,0.02]
[1744564959382,6.1749,1619.5,1619.1,0.02]
[1744564959615,6.17477,1619.5,1619.1,6.19611]
[1744564959782,6.17514,1619.4,1619.1,0.02]
[1744564960604,6.17383,1619.8,1619.3,6.17531]
[1744564960818,12.34856,1619.7,1619.2,6.17567]
[1744564961015,1.234856,1619.7,1619.1,0.02]
[1744564961177,11.2049901,1620.0,1619.3,6.17535]
[1744564961378,6.17437,1619.6,1619.1,0.02]
[1744564961617,6.17437,1619.6,1619.1,12.3723]
[1744564961789,11.2052401,1620.0,1619.1,6.196]
[1744564961980,12.34933,1619.6,1619.1,6.196]
[1744564962177,4.575,1619.5,1618.8,0.5563608]
[1744564962377,12.35381,1619.0,1618.8,0.5563608]
[1744564962695,6.17605,1619.2,1618.8,0.5563608]
[1744564963213,6.17638,1619.1,1618.8,0.5563608]
[1744564963427,12.35364,1619.0,1618.8,0.5563608]
[1744564963626,55.925,1619.4,1618.8,0.5563608]
[1744564963923,6.17672,1619.0,1618.8,0.5563608]
[1744564964087,6.17703,1618.9,1618.8,0.5563608]
[1744564964870,4.575,1618.9,1618.1,0.02]
[1744564965129,5.0321001,1618.5,1618.1,0.02]
[1744564965421,6.1797,1618.2,1618.1,0.02]
[1744564965843,6.18229,1617.6,1617.1,6.0838]
[1744564966045,6.18067,1618.0,1617.1,6.0838]
[1744564966248,6.1832,1617.3,1617.1,6.0838]
[1744564966537,5.69096344,1617.9,1617.1,6.0838]
[1744564966538,52.943,1617.4,1617.1,6.0838]
[1744564966747,6.18328,1617.3,1617.1,6.0838]
[1744564966946,6.18467,1616.9,1616.8,6.28030714]
[1744564967549,6.18543,1616.7,1616.6,0.5563608]
[1744564967845,7.34204593,1616.7,1616.6,0.5563608]
[1744564968025,7.89204593,1616.7,1616.6,0.5563608]
[1744564968198,11.2183001,1616.5,1616.1,0.02]
[1744564968512,6.18735,1616.2,1616.1,0.02]
[1744564968727,1.5594,1616.3,1616.1,0.02]
[1744564969045,53.07986334,1616.5,1616.1,0.02]
[1744564969196,6.18472,1616.9,1616.3,6.18678]
[1744564969393,4.02733534,1616.9,1616.1,0.02]
[1744564969600,6.18574,1616.7,1616.1,12.39513]
[1744564969901,6.18642,1616.5,1616.1,0.02]
[1744564970100,1.02733534,1616.9,1616.1,1.6759]
[1744564970313,6.73435551,1616.8,1616.1,0.02]
[1744564970544,6.18625,1616.5,1616.1,0.02]
[1744564970798,6.1866,1616.4,1616.1,0.02]
[1744564971029,12.3723,1616.6,1616.1,0.02]
[1744564971303,6.18647,1616.5,1616.1,0.02]
[1744564971637,1.54811633,1616.6,1616.1,6.2077]
[1744564971801,3.10886334,1616.7,1616.1,6.20753]
[1744564972006,6.18598,1616.6,1616.1,6.20753]
[1744564972203,6.18586,1616.6,1616.1,0.02]
[1744564972507,6.29462334,1616.7,1616.2,6.18717]
[1744564972811,6.29462334,1616.7,1616.1,6.20772]
[1744564972812,0.10886334,1616.7,1616.3,0.21385399]
[1744564973013,6.18312,1617.4,1616.7,6.18523]
[1744564973212,0.618312,1617.3,1616.8,6.1848]
[1744564973450,6.18287,1617.4,1616.8,6.39842181]
[1744564974013,67.50000551,1617.6,1616.8,6.39842181]
[1744564974215,6.18347,1617.3,1616.8,12.58323181]
[1744564974415,61.31775551,1617.6,1616.8,0.21362181]
[1744564974616,6.18467,1616.9,1616.8,0.21362181]
[1744564974816,6.18453,1617.0,1616.5,6.18603]
[1744564975223,12.36909,1617.0,1616.6,0.1794417]
[1744564975708,6.18352,1617.2,1616.6,0.1794417]
[1744564975911,6.1845,1617.0,1616.6,6.3652217]
[1744564976105,9.18277,1617.4,1616.6,6.3652217]
[1744564976106,6.18353,1617.2,1616.6,0.1794417]
[1744564976434,6.18317,1617.3,1616.8,6.18467]
[1744564976628,56.035,1617.4,1616.7,0.1794417]
[1744564976629,6.18453,1617.0,1616.7,0.1794417]
[1744564976845,56.035,1617.4,1616.4,6.18657]
[1744564977140,6.18404,1617.1,1616.6,12.37116]
[1744564977346,6.18435,1617.0,1616.7,0.1794417]
[1744564977504,6.18387,1617.2,1616.6,6.18577]
[1744564977707,6.18456,1617.0,1616.5,12.37232]
[1744564978035,6.18395,1617.1,1616.6,6.3651617]
[1744564978216,6.18474,1616.9,1616.6,0.1794417]
[1744564978621,6.802345,1617.1,1616.6,6.18561]
[1744564978853,6.18395,1617.1,1616.7,6.3646517]
[1744564979152,59.2178,1617.4,1616.9,6.18467]
[1744564979319,53.035,1617.4,1616.9,6.18446]
[1744564979523,53.035,1617.4,1617.0,0.1794417]
[1744564979846,53.035,1617.4,1616.6,1.6559]
[1744564979847,3.0,1617.3,1616.6,1.6559]
[1744564980058,6.18466,1617.0,1616.5,6.18619]
[1744564980217,6.18505,1616.8,1616.7,0.1794417]
[1744564980410,6.18505,1616.8,1616.1,7.86347]
[1744564980411,6.802836,1617.0,1616.2,6.18735]
[1744564980612,0.618466,1617.0,1616.7,6.18537]
[1744564980811,6.18435,1617.0,1616.1,1.6759]
[1744564981022,6.18474,1616.9,1616.8,0.1794417]
[1744564981247,6.18511,1616.8,1616.3,12.37358]
[1744564981449,6.18511,1616.8,1616.4,6.18655]
[1744564981657,12.37042,1616.8,1616.4,6.3659917]
[1744564981860,3.0,1617.1,1616.3,0.0618687]
[1744564982153,6.18431,1617.0,1616.6,6.18569]
[1744564982348,6.18358,1617.2,1616.7,6.3647317]
[1744564982552,0.918358,1617.2,1616.7,0.1794417]
[1744564982748,6.18484,1616.9,1616.5,6.18592]
[1744564982950,6.18484,1616.9,1616.1,1.6759]
[1744564982951,6.18484,1616.9,1616.4,6.18652]
[1744564983113,3.0,1617.3,1616.3,6.18697]
[1744564983317,6.18378,1617.2,1616.7,6.18521]
[1744564983511,53.049,1617.4,1617.3,6.18314]
[1744564983745,6.18094,1617.9,1617.4,6.18256]
[1744564984017,53.049,1618.1,1617.5,0.1794417]
[1744564984246,6.17937,1618.3,1617.8,6.1809]
[1744564984456,14.47193551,1618.6,1618.1,6.17983]
[1744564984660,14.48904551,1619.4,1617.8,1.6559]
[1744564984821,6.17588,1619.2,1618.3,6.1793]
[1744564985022,6.17588,1619.2,1617.8,1.6559]
[1744564985023,6.17852,1618.6,1617.8,1.6559]
[1744564985241,6.17875,1618.5,1618.0,6.18026]
[1744564985412,6.1795,1618.3,1617.9,0.17087012]
[1744564985616,0.05,1618.2,1618.0,6.18034]
[1744564985814,0.05,1618.6,1618.5,6.17856]
[1744564986009,0.15886334,1619.1,1618.5,6.17852]
[1744564986209,0.15886334,1619.1,1618.5,0.17087012]
[1744564986448,0.15886334,1619.1,1618.9,6.1767]
[1744564986650,6.17702,1619.0,1618.5,6.17821]
[1744564986856,0.05,1618.9,1618.4,6.17894]
[1744564987072,6.17665,1619.0,1618.6,0.17087012]
[1744564987363,0.05,1618.9,1618.8,6.17741]
[1744564987567,0.05,1619.2,1618.6,0.061774]
[1744564987746,0.05,1619.2,1618.7,0.17087012]
[1744564987924,6.17668,1619.0,1618.6,7.77938]
[1744564988127,0.05,1618.9,1618.7,0.17087012]
[1744564988337,0.05,1618.9,1618.3,6.17931]
[1744564988526,0.02,1619.4,1618.8,6.17715]
[1744564988527,6.22558,1619.3,1618.8,6.17715]
[1744564988855,0.05,1619.3,1619.0,6.1765]
[1744564989360,0.05,1619.3,1619.1,0.17087012]
[1744564989567,0.07,1619.4,1619.1,0.17087012]
[1744564989860,6.24534,1619.4,1618.9,6.177]
[1744564990167,6.17634,1619.1,1619.0,0.15190145]
[1744564990471,1.285237,1619.1,1618.2,1.6014]
[1744564990763,6.17843,1618.6,1618.1,6.18008]
[1744564990924,6.22882,1618.5,1618.2,0.15190145]
[1744564991120,0.05,1618.5,1618.2,0.15190145]
[1744564991346,6.17848,1618.6,1618.2,0.15190145]
[1744564991557,0.05,1618.5,1618.2,0.15190145]
[1744564992073,0.05,1618.5,1618.3,6.1791]
[1744564992251,0.05,1618.7,1618.4,6.17879]
[1744564992567,6.22788,1618.7,1618.5,0.15190145]
[1744564992764,6.22788,1618.7,1618.3,12.35826]
[1744564992926,6.22788,1618.7,1618.4,0.15190145]
[1744564993132,0.05,1618.7,1618.4,6.17892]
[1744564993371,6.22815,1618.7,1618.5,0.15190145]
[1744564993529,0.05,1618.7,1618.3,6.17918]
[1744564993728,0.05,1618.7,1618.4,6.33053145]
[1744564993938,0.05,1618.7,1618.4,0.15190145]
[1744564994128,5.95362408,1618.7,1616.6,0.51568116]
[1744564994341,5.95362408,1618.7,1618.2,6.17949]
[1744564994546,0.05,1618.7,1618.4,6.17872]
[1744564994864,0.05,1618.7,1618.5,0.15190145]
[1744564995069,6.22814,1618.7,1618.3,12.35858]
[1744564995246,6.22814,1618.7,1618.4,0.15190145]
[1744564995449,6.22802,1618.7,1618.3,6.17904]
[1744564995785,0.05,1618.7,1618.4,6.33048145]
[1744564995952,0.05,1618.7,1618.4,0.15190145]
[1744564996145,0.05,1618.7,1618.4,12.35768]
[1744564996481,6.22815,1618.7,1618.5,0.15190145]
[1744564996684,0.05,1618.7,1618.4,6.17889]
[1744564996885,0.05,1618.7,1618.5,0.15190145]
[1744564997183,0.10886334,1619.1,1619.0,6.17665]
[1744564997389,0.02,1619.4,1619.1,6.1761]
[1744564997390,0.07,1619.4,1619.1,6.1761]
[1744564997561,0.07,1619.4,1619.1,6.17627]
[1744564997887,0.07,1619.4,1619.2,6.32762145]
[1744564998193,0.07,1619.4,1617.8,6.18106]
[1744564998194,6.17979,1618.2,1617.8,6.18106]
[1744564998492,6.17685,1619.0,1618.5,6.17843]
[1744564998785,9.17779,1618.7,1618.6,0.12658454]
[1744564998941,6.17878,1618.5,1618.1,6.17991]
[1744564999149,0.05,1618.4,1618.1,6.17991]
[1744564999645,6.18059,1618.0,1617.6,6.18187]
[1744564999851,0.05,1617.9,1617.6,12.36373]
[1744565000085,0.05,1617.9,1617.5,6.18236]
[1744565000392,0.05,1617.9,1617.5,6.18222]
[1744565000771,6.18207,1617.6,1617.2,6.18338]
[1744565001089,6.1807,1618.0,1617.3,6.18299]
[1744565001276,6.1807,1618.0,1617.2,0.06183193]
[1744565001277,6.2309,1617.9,1617.5,6.18217]
[1744565001460,6.18238,1617.5,1616.5,7.83431]
[1744565001657,5.05192751,1617.2,1616.5,6.18583]
[1744565001900,5.05192751,1617.2,1616.2,0.60100819]
[1744565001901,6.18539,1616.8,1616.3,6.18697]
[1744565002105,0.05,1616.7,1616.3,6.18671]
[1744565002420,6.23547,1616.7,1616.2,0.1377049]
[1744565002583,6.23547,1616.7,1616.2,6.3248949]
[1744565002777,6.23547,1616.7,1616.2,6.3247949]
[1744565003105,11.23889751,1616.3,1616.2,0.1377049]
[1744565003303,64.31189751,1616.3,1616.2,0.1377049]
[1744565003514,11.23889751,1616.3,1616.2,0.1377049]
[1744565003816,0.05,1616.3,1616.2,0.1377049]
[1744565004037,6.23697,1616.3,1616.2,0.1377049]
[1744565004179,15.53125351,1616.3,1616.2,0.1377049]
[1744565004386,15.48125351,1616.3,1616.2,0.1377049]
[1744565004676,15.59011685,1616.3,1616.2,0.1377049]
[1744565005023,6.18386,1617.2,1616.2,0.1377049]
[1744565005177,6.18238,1617.5,1616.7,6.18522]
[1744565005373,0.05,1617.4,1616.6,6.18582]
[1744565005723,0.05,1617.7,1617.3,6.18279]
[1744565006032,0.05,1617.7,1617.3,6.18298]
[1744565006321,0.05,1617.7,1617.5,6.18222]
[1744565006515,6.22979,1618.2,1617.4,6.3133756]
[1744565006718,6.22979,1618.2,1617.7,6.1813]
[1744565007021,6.18024,1618.1,1617.8,0.12225441]
[1744565007175,6.18094,1617.9,1617.5,6.18236]
[1744565007492,6.23144,1617.8,1617.1,1.6038]
[1744565007818,6.23144,1617.8,1617.3,6.18299]
[1744565008024,0.05,1617.8,1617.4,6.18243]
[1744565008318,0.05,1617.8,1617.1,7.78758]
[1744565008319,6.23145,1617.8,1617.3,6.18293]
[1744565008490,6.23146,1617.8,1617.4,6.1826]
[1744565008692,6.23146,1617.8,1617.4,6.18271]
[1744565008889,6.23146,1617.8,1617.1,1.6038]
[1744565008890,0.673146,1617.8,1617.1,1.6038]
[1744565009209,6.23148,1617.8,1617.2,6.18328]
[1744565009603,0.05,1617.8,1617.4,6.18258]
[1744565009992,0.05,1617.8,1617.1,1.6038]